[Event "*** Titled Tuesday Blitz"]
[Site "Chess.com"]
[Date "2021.04.20"]
[Round "4"]
[White "Matensien"]
[Black "Grandmaster2B"]
[Result "0-1"]
[WhiteElo "2374"]
[BlackElo "2559"]
[TimeControl "180+1"]
[EndTime "10:36:58 PDT"]
[Termination "Grandmaster2B won on time"]

1. d4 {[%clk 0:03:00.9]} 1... Nf6 {[%clk 0:02:58.1]} 2. c4 {[%clk 0:03:01.4]}
2... e6 {[%clk 0:02:58.4]} 3. Nc3 {[%clk 0:03:01.1]} 3... Bb4 {[%clk 0:02:59]}
4. Qc2 {[%clk 0:03:01.4]} 4... Nc6 {[%clk 0:02:59.3]} 5. Nf3 {[%clk 0:03:00.8]}
5... d6 {[%clk 0:02:59.6]} 6. Bd2 {[%clk 0:03:01]} 6... e5 {[%clk 0:02:59.2]} 7.
dxe5 {[%clk 0:02:44.6]} 7... dxe5 {[%clk 0:02:59.1]} 8. a3 {[%clk 0:02:44.6]}
8... Bxc3 {[%clk 0:02:57.5]} 9. Bxc3 {[%clk 0:02:45.5]} 9... Qe7 {[%clk
0:02:58.3]} 10. b4 {[%clk 0:02:41.9]} 10... Bg4 {[%clk 0:02:51]} 11. e3 {[%clk
0:02:42.1]} 11... e4 {[%clk 0:02:46.4]} 12. Nd4 {[%clk 0:02:33.7]} 12... Ne5
{[%clk 0:02:44.7]} 13. h3 {[%clk 0:02:27.3]} 13... Bd7 {[%clk 0:02:35]} 14. Be2
{[%clk 0:02:21.4]} 14... O-O {[%clk 0:02:33.6]} 15. O-O {[%clk 0:02:19.5]} 15...
b6 {[%clk 0:02:29.5]} 16. Rad1 {[%clk 0:02:13.4]} 16... c5 {[%clk 0:02:24.4]}
17. Nb3 {[%clk 0:02:13.3]} 17... Bf5 {[%clk 0:02:21.2]} 18. bxc5 {[%clk
0:01:41.5]} 18... bxc5 {[%clk 0:02:18.9]} 19. Na5 {[%clk 0:01:42.1]} 19... Nd3
{[%clk 0:02:16]} 20. Rb1 {[%clk 0:01:24.4]} 20... Qc7 {[%clk 0:02:04]} 21. Rb7
{[%clk 0:01:19.8]} 21... Qd6 {[%clk 0:01:59.4]} 22. Rfb1 {[%clk 0:01:12.9]}
22... Nd7 {[%clk 0:01:55.9]} 23. Ba1 {[%clk 0:00:57.6]} 23... Nb6 {[%clk
0:01:50.4]} 24. Qc3 {[%clk 0:00:55.4]} 24... f6 {[%clk 0:01:50.5]} 25. Nb3
{[%clk 0:00:28.5]} 25... Bc8 {[%clk 0:01:43.6]} 26. Bxd3 {[%clk 0:00:11.4]}
26... exd3 {[%clk 0:01:37.3]} 27. Rxb6 {[%clk 0:00:10.5]} 27... axb6 {[%clk
0:01:38.2]} 28. Rd1 {[%clk 0:00:07]} 28... Rxa3 {[%clk 0:01:33.9]} 29. Rxd3
{[%clk 0:00:06.9]} 29... Qe7 {[%clk 0:01:30]} 30. Qb2 {[%clk 0:00:05.5]} 30...
Ra4 {[%clk 0:01:30.1]} 31. Nd2 {[%clk 0:00:04.9]} 31... Rb4 {[%clk 0:01:29.1]}
32. Qa3 {[%clk 0:00:03.1]} 32... Bf5 {[%clk 0:01:28.3]} 33. Rd5 {[%clk 0:00:02]}
33... Be6 {[%clk 0:01:28.5]} 34. Rd3 {[%clk 0:00:02.1]} 34... Bxc4 {[%clk
0:01:26.7]} 35. Nxc4 {[%clk 0:00:02]} 35... Rxc4 {[%clk 0:01:27.6]} 36. Qb3
{[%clk 0:00:01.7]} 36... Qf7 {[%clk 0:01:25.6]} 37. Rd1 {[%clk 0:00:01.8]} 37...
Rb4 {[%clk 0:01:23.9]} 38. Qa3 {[%clk 0:00:02.1]} 38... Qb3 {[%clk 0:01:23.3]}
39. Qc1 {[%clk 0:00:01.7]} 39... Rc4 {[%clk 0:01:21.6]} 40. Qd2 {[%clk
0:00:01.4]} 40... Rc2 {[%clk 0:01:20.5]} 41. Qd7 {[%clk 0:00:01.2]} 41... Qf7
{[%clk 0:01:17.4]} 0-1

[Event "*** Titled Tuesday Blitz"]
[Site "Chess.com"]
[Date "2021.04.20"]
[Round "4"]
[White "ZeZacarias"]
[Black "AttractiveMustard"]
[Result "1-0"]
[WhiteElo "2160"]
[BlackElo "2378"]
[TimeControl "180+1"]
[EndTime "10:37:01 PDT"]
[Termination "ZeZacarias won by resignation"]

1. d4 {[%clk 0:03:00.2]} 1... Nf6 {[%clk 0:02:59.2]} 2. c4 {[%clk 0:03:00.6]}
2... g6 {[%clk 0:02:59.1]} 3. Nc3 {[%clk 0:02:59.5]} 3... Bg7 {[%clk 0:02:59.6]}
4. e4 {[%clk 0:02:58.6]} 4... d6 {[%clk 0:02:59.4]} 5. Nf3 {[%clk 0:02:57.6]}
5... O-O {[%clk 0:02:59.3]} 6. h3 {[%clk 0:02:57.3]} 6... e5 {[%clk 0:02:57.9]}
7. d5 {[%clk 0:02:57.6]} 7... a5 {[%clk 0:02:57.3]} 8. Be3 {[%clk 0:02:55.8]}
8... Na6 {[%clk 0:02:56.6]} 9. g4 {[%clk 0:02:37.6]} 9... Nc5 {[%clk 0:02:30.9]}
10. Nd2 {[%clk 0:02:33.5]} 10... h5 {[%clk 0:02:28]} 11. Be2 {[%clk 0:02:27.9]}
11... hxg4 {[%clk 0:01:25.4]} 12. hxg4 {[%clk 0:02:28.8]} 12... Nxg4 {[%clk
0:01:25.6]} 13. Bxg4 {[%clk 0:02:19.3]} 13... Nd3+ {[%clk 0:01:25.2]} 14. Kf1
{[%clk 0:02:11.1]} 14... Nxb2 {[%clk 0:01:25]} 15. Qf3 {[%clk 0:02:02.8]} 15...
f5 {[%clk 0:01:14.3]} 16. exf5 {[%clk 0:01:52.6]} 16... gxf5 {[%clk 0:01:11]}
17. Qh3 {[%clk 0:01:37.2]} 17... fxg4 {[%clk 0:00:56.9]} 18. Qh7+ {[%clk
0:01:36]} 18... Kf7 {[%clk 0:00:57.5]} 19. Qh5+ {[%clk 0:01:31.9]} 19... Kg8
{[%clk 0:00:57.4]} 20. Bg5 {[%clk 0:01:27.8]} 20... Qd7 {[%clk 0:00:41.8]} 21.
Qh7+ {[%clk 0:01:21]} 21... Kf7 {[%clk 0:00:41.2]} 22. Rh6 {[%clk 0:01:06.8]}
22... Ke8 {[%clk 0:00:29.8]} 23. Re6+ {[%clk 0:01:02.6]} 23... Kf7 {[%clk
0:00:12.8]} 24. Bh6 {[%clk 0:00:57.9]} 24... Rg8 {[%clk 0:00:08.8]} 25. Qf5+
{[%clk 0:00:50.5]} 1-0

[Event "*** Titled Tuesday Blitz"]
[Site "Chess.com"]
[Date "2021.04.20"]
[Round "4"]
[White "Komiagina_Maria"]
[Black "enriquebutti"]
[Result "1-0"]
[WhiteElo "2242"]
[BlackElo "2055"]
[TimeControl "180+1"]
[EndTime "10:37:03 PDT"]
[Termination "Komiagina_Maria won by resignation"]

1. e4 {[%clk 0:03:00.9]} 1... c5 {[%clk 0:02:58.6]} 2. Nf3 {[%clk 0:03:00.2]}
2... d6 {[%clk 0:02:57.7]} 3. d4 {[%clk 0:02:59.7]} 3... cxd4 {[%clk 0:02:56.9]}
4. Nxd4 {[%clk 0:02:59.8]} 4... Nf6 {[%clk 0:02:56]} 5. Nc3 {[%clk 0:02:59.9]}
5... a6 {[%clk 0:02:54.9]} 6. h3 {[%clk 0:02:59.6]} 6... e6 {[%clk 0:02:53.4]}
7. g4 {[%clk 0:02:56.5]} 7... h6 {[%clk 0:02:52.4]} 8. Bg2 {[%clk 0:02:56.2]}
8... g5 {[%clk 0:02:50]} 9. Be3 {[%clk 0:02:53.9]} 9... Nbd7 {[%clk 0:02:48.4]}
10. Qe2 {[%clk 0:02:49.7]} 10... Ne5 {[%clk 0:02:47]} 11. O-O-O {[%clk
0:02:38.5]} 11... Bd7 {[%clk 0:02:45.7]} 12. f4 {[%clk 0:02:34.7]} 12... gxf4
{[%clk 0:02:44]} 13. Bxf4 {[%clk 0:02:34.4]} 13... Rc8 {[%clk 0:02:42.2]} 14.
Rhf1 {[%clk 0:02:13.4]} 14... Rxc3 {[%clk 0:02:28.2]} 15. bxc3 {[%clk
0:02:10.6]} 15... Qa5 {[%clk 0:02:23.4]} 16. Bxe5 {[%clk 0:01:50]} 16... Qxe5
{[%clk 0:02:19.4]} 17. Qc4 {[%clk 0:01:42]} 17... Be7 {[%clk 0:01:56.5]} 18. Qc7
{[%clk 0:01:35.8]} 18... Qc5 {[%clk 0:01:34.8]} 19. Qxc5 {[%clk 0:01:19.3]}
19... dxc5 {[%clk 0:01:33.7]} 20. e5 {[%clk 0:01:18.6]} 20... cxd4 {[%clk
0:01:25.9]} 21. exf6 {[%clk 0:01:17.1]} 21... Ba3+ {[%clk 0:01:25.2]} 22. Kd2
{[%clk 0:01:09.2]} 22... Bb5 {[%clk 0:01:04.6]} 23. cxd4 {[%clk 0:01:00.7]}
23... Bxf1 {[%clk 0:00:51.3]} 24. Rxf1 {[%clk 0:00:59.3]} 24... b6 {[%clk
0:00:45.7]} 25. Rb1 {[%clk 0:00:52.7]} 25... b5 {[%clk 0:00:38.3]} 26. Bb7
{[%clk 0:00:49.9]} 26... O-O {[%clk 0:00:29.4]} 27. Bxa6 {[%clk 0:00:47.3]}
27... b4 {[%clk 0:00:28.6]} 28. Bc4 {[%clk 0:00:44.9]} 28... Rd8 {[%clk
0:00:27.6]} 29. Ke3 {[%clk 0:00:44]} 1-0

[Event "*** Titled Tuesday Blitz"]
[Site "Chess.com"]
[Date "2021.04.20"]
[Round "4"]
[White "DeTimmerman"]
[Black "Kretov_Evgenij"]
[Result "1/2-1/2"]
[WhiteElo "2819"]
[BlackElo "2652"]
[TimeControl "180+1"]
[EndTime "10:37:10 PDT"]
[Termination "Game drawn by agreement"]

1. b4 {[%clk 0:03:00.9]} 1... Nf6 {[%clk 0:02:56.9]} 2. Bb2 {[%clk 0:03:00]}
2... e6 {[%clk 0:02:56.9]} 3. b5 {[%clk 0:02:59.1]} 3... a6 {[%clk 0:02:56]} 4.
a4 {[%clk 0:03:00]} 4... axb5 {[%clk 0:02:55.9]} 5. axb5 {[%clk 0:02:58.9]} 5...
Rxa1 {[%clk 0:02:55.8]} 6. Bxa1 {[%clk 0:02:59.8]} 6... Bb4 {[%clk 0:02:53.6]}
7. e3 {[%clk 0:02:59.5]} 7... O-O {[%clk 0:02:52.2]} 8. Nf3 {[%clk 0:02:59.1]}
8... d6 {[%clk 0:02:49.7]} 9. Be2 {[%clk 0:02:59.1]} 9... e5 {[%clk 0:02:45.8]}
10. O-O {[%clk 0:02:57.3]} 10... h6 {[%clk 0:02:44.9]} 11. c3 {[%clk 0:02:57.1]}
11... Ba5 {[%clk 0:02:43.8]} 12. c4 {[%clk 0:02:57.6]} 12... e4 {[%clk
0:02:39.3]} 13. Nd4 {[%clk 0:02:57.4]} 13... Nbd7 {[%clk 0:02:38.6]} 14. d3
{[%clk 0:02:56.6]} 14... exd3 {[%clk 0:02:31.7]} 15. Bxd3 {[%clk 0:02:57.5]}
15... Ne5 {[%clk 0:02:31.1]} 16. Be2 {[%clk 0:02:57.8]} 16... Ne4 {[%clk
0:02:24.1]} 17. Qc2 {[%clk 0:02:57.4]} 17... Nc5 {[%clk 0:02:19.2]} 18. Nc3
{[%clk 0:02:57.4]} 18... Bg4 {[%clk 0:02:13.6]} 19. f3 {[%clk 0:02:49.8]} 19...
Bd7 {[%clk 0:02:10.1]} 20. e4 {[%clk 0:02:46.1]} 20... Bb6 {[%clk 0:02:08.4]}
21. Nd5 {[%clk 0:02:45.7]} 21... Ba7 {[%clk 0:02:03.6]} 22. Kh1 {[%clk
0:02:45.9]} 22... c6 {[%clk 0:02:03.5]} 23. Ne3 {[%clk 0:02:45.5]} 23... Ne6
{[%clk 0:02:02.6]} 24. Ndf5 {[%clk 0:02:44.4]} 24... Nf4 {[%clk 0:01:48.2]} 25.
Nxd6 {[%clk 0:02:05.6]} 25... Bxe3 {[%clk 0:01:39.8]} 26. Bxe5 {[%clk
0:02:04.6]} 26... Qg5 {[%clk 0:01:29.6]} 27. Bxf4 {[%clk 0:02:04.5]} 27... Bxf4
{[%clk 0:01:29.4]} 28. Nf5 {[%clk 0:01:31.9]} 28... Bxf5 {[%clk 0:01:27.5]} 29.
exf5 {[%clk 0:01:32.8]} 29... Qh4 {[%clk 0:01:24]} 30. g3 {[%clk 0:01:33.2]}
30... Bxg3 {[%clk 0:01:23.5]} 31. Bd3 {[%clk 0:01:31.9]} 31... Be5 {[%clk
0:01:20.8]} 32. Be4 {[%clk 0:01:29.8]} 32... cxb5 {[%clk 0:01:18.8]} 33. cxb5
{[%clk 0:01:30.7]} 33... b6 {[%clk 0:01:19]} 34. Qf2 {[%clk 0:01:29]} 34... Qf4
{[%clk 0:01:16.5]} 35. Qg3 {[%clk 0:01:23.8]} 35... Qxg3 {[%clk 0:01:16.6]} 36.
hxg3 {[%clk 0:01:24.7]} 36... Bxg3 {[%clk 0:01:16.6]} 37. Rd1 {[%clk 0:01:24.1]}
37... Rc8 {[%clk 0:01:08.8]} 38. Bc6 {[%clk 0:01:21.2]} 38... Kf8 {[%clk
0:01:02]} 39. Kg2 {[%clk 0:01:19.3]} 39... Be5 {[%clk 0:01:01]} 40. Rd7 {[%clk
0:01:18.4]} 40... Rc7 {[%clk 0:01:00.7]} 41. Rxc7 {[%clk 0:01:17.9]} 41... Bxc7
{[%clk 0:01:00.3]} 42. Be4 {[%clk 0:01:16.9]} 42... Ke7 {[%clk 0:01:00.4]} 43.
Kh3 {[%clk 0:01:16.2]} 43... Kf6 {[%clk 0:01:00.4]} 44. Kg4 {[%clk 0:01:16.5]}
44... g6 {[%clk 0:00:59.2]} 45. fxg6 {[%clk 0:01:17.3]} 45... fxg6 {[%clk
0:00:59.5]} 46. Bd3 {[%clk 0:01:12.6]} 46... h5+ {[%clk 0:00:58.1]} 47. Kh3
{[%clk 0:01:12.6]} 47... g5 {[%clk 0:00:55.6]} 48. Be4 {[%clk 0:01:10.5]} 48...
Ke5 {[%clk 0:00:53]} 49. Bg6 {[%clk 0:01:09.9]} 49... h4 {[%clk 0:00:51.6]} 50.
Kg2 {[%clk 0:01:01.1]} 50... Kf4 {[%clk 0:00:50.2]} 51. Bh5 {[%clk 0:01:01.1]}
51... Ke3 {[%clk 0:00:49.6]} 52. Bg4 {[%clk 0:00:59.9]} 52... Bf4 {[%clk
0:00:48.1]} 53. Bh5 {[%clk 0:01:00.2]} 53... Ke2 {[%clk 0:00:47.8]} 54. Bg4
{[%clk 0:01:00.5]} 54... Kd3 {[%clk 0:00:47.8]} 55. Bd7 {[%clk 0:01:00.3]} 55...
Kc4 {[%clk 0:00:48]} 56. Bc6 {[%clk 0:01:00.5]} 1/2-1/2

[Event "*** Titled Tuesday Blitz"]
[Site "Chess.com"]
[Date "2021.04.20"]
[Round "4"]
[White "AryanTari"]
[Black "juancruzarias"]
[Result "1/2-1/2"]
[WhiteElo "2881"]
[BlackElo "2571"]
[TimeControl "180+1"]
[EndTime "10:37:12 PDT"]
[Termination "Game drawn by repetition"]

1. c4 {[%clk 0:03:00.9]} 1... e5 {[%clk 0:02:56.1]} 2. g3 {[%clk 0:02:56.7]}
2... d6 {[%clk 0:02:54.1]} 3. Bg2 {[%clk 0:02:55.3]} 3... c6 {[%clk 0:02:54.7]}
4. Nc3 {[%clk 0:02:54.7]} 4... Be6 {[%clk 0:02:55.2]} 5. b3 {[%clk 0:02:39.1]}
5... Nd7 {[%clk 0:02:54.6]} 6. d4 {[%clk 0:02:39.3]} 6... Ngf6 {[%clk
0:02:53.7]} 7. Nf3 {[%clk 0:02:38.7]} 7... Be7 {[%clk 0:02:53.3]} 8. O-O {[%clk
0:02:29.1]} 8... h6 {[%clk 0:02:53.5]} 9. Bb2 {[%clk 0:02:28.6]} 9... O-O {[%clk
0:02:53.5]} 10. Qc2 {[%clk 0:02:26.3]} 10... Bg4 {[%clk 0:02:47.9]} 11. Rad1
{[%clk 0:02:23.3]} 11... Qc7 {[%clk 0:02:46]} 12. Nh4 {[%clk 0:02:18.4]} 12...
exd4 {[%clk 0:02:29.1]} 13. Rxd4 {[%clk 0:02:19.3]} 13... Rfe8 {[%clk
0:02:10.5]} 14. Nf5 {[%clk 0:02:08.5]} 14... Bf8 {[%clk 0:02:10.1]} 15. Rfd1
{[%clk 0:01:54.7]} 15... Re6 {[%clk 0:01:20.9]} 16. h3 {[%clk 0:01:54.3]} 16...
Bxf5 {[%clk 0:01:20.4]} 17. Qxf5 {[%clk 0:01:54]} 17... Rae8 {[%clk 0:01:21.3]}
18. R4d2 {[%clk 0:01:34.5]} 18... a5 {[%clk 0:01:21.4]} 19. h4 {[%clk
0:01:24.5]} 19... Nc5 {[%clk 0:01:21.1]} 20. Qf4 {[%clk 0:01:13.2]} 20... Qb6
{[%clk 0:01:19.8]} 21. Qd4 {[%clk 0:01:02.6]} 21... Qb4 {[%clk 0:01:18.1]} 22.
Nb1 {[%clk 0:00:53.7]} 22... Rxe2 {[%clk 0:00:54.7]} 23. Bc3 {[%clk 0:00:44.7]}
23... Qb6 {[%clk 0:00:53.3]} 24. Rxe2 {[%clk 0:00:41.9]} 24... Rxe2 {[%clk
0:00:54.1]} 25. Bf3 {[%clk 0:00:42.5]} 25... Rxa2 {[%clk 0:00:51.7]} 26. Qe3
{[%clk 0:00:38.7]} 26... Qxb3 {[%clk 0:00:41]} 27. Nd2 {[%clk 0:00:36.1]} 27...
Qa3 {[%clk 0:00:40.9]} 28. Nb1 {[%clk 0:00:31.7]} 28... Qb3 {[%clk 0:00:40.8]}
29. Nd2 {[%clk 0:00:32]} 29... Qa3 {[%clk 0:00:41]} 30. Nb1 {[%clk 0:00:18.4]}
30... Qb3 {[%clk 0:00:32.4]} 1/2-1/2

[Event "*** Titled Tuesday Blitz"]
[Site "Chess.com"]
[Date "2021.04.20"]
[Round "4"]
[White "ckgchess"]
[Black "MalyDominator"]
[Result "1-0"]
[WhiteElo "2693"]
[BlackElo "2453"]
[TimeControl "180+1"]
[EndTime "10:37:17 PDT"]
[Termination "ckgchess won by resignation"]

1. e4 {[%clk 0:03:00.9]} 1... c5 {[%clk 0:02:59.3]} 2. c3 {[%clk 0:03:00.9]}
2... Nf6 {[%clk 0:02:55.9]} 3. e5 {[%clk 0:03:01.3]} 3... Nd5 {[%clk 0:02:55.4]}
4. d4 {[%clk 0:03:02.2]} 4... cxd4 {[%clk 0:02:55]} 5. Nf3 {[%clk 0:03:02.7]}
5... Nc6 {[%clk 0:02:54.6]} 6. cxd4 {[%clk 0:03:03.2]} 6... d6 {[%clk
0:02:54.9]} 7. Bc4 {[%clk 0:03:03.1]} 7... e6 {[%clk 0:02:54.2]} 8. O-O {[%clk
0:03:02.9]} 8... Be7 {[%clk 0:02:54.3]} 9. Qe2 {[%clk 0:02:59.3]} 9... O-O
{[%clk 0:02:53.5]} 10. a3 {[%clk 0:02:59]} 10... a6 {[%clk 0:02:52.7]} 11. Rd1
{[%clk 0:02:42.7]} 11... b6 {[%clk 0:02:38.9]} 12. Nc3 {[%clk 0:02:25.9]} 12...
Nxc3 {[%clk 0:02:34]} 13. bxc3 {[%clk 0:02:26.8]} 13... dxe5 {[%clk 0:02:33.1]}
14. d5 {[%clk 0:02:20.7]} 14... exd5 {[%clk 0:01:55.1]} 15. Bxd5 {[%clk
0:02:21.6]} 15... Qc7 {[%clk 0:01:55.3]} 16. Nxe5 {[%clk 0:02:17.8]} 16... Nxe5
{[%clk 0:01:52.2]} 17. Bf4 {[%clk 0:02:00.9]} 17... Bg4 {[%clk 0:01:08.7]} 18.
Qxg4 {[%clk 0:01:57.5]} 18... Nxg4 {[%clk 0:01:08.4]} 19. Bxc7 {[%clk
0:01:56.9]} 19... Rac8 {[%clk 0:01:07]} 20. Bxb6 {[%clk 0:01:56]} 20... Rxc3
{[%clk 0:01:07]} 21. a4 {[%clk 0:01:50.9]} 21... Bc5 {[%clk 0:01:04]} 22. Bxc5
{[%clk 0:01:48.9]} 22... Rxc5 {[%clk 0:01:04.9]} 23. Rac1 {[%clk 0:01:47.1]}
23... Rxc1 {[%clk 0:00:40.1]} 24. Rxc1 {[%clk 0:01:48]} 24... g6 {[%clk
0:00:40]} 25. h3 {[%clk 0:01:44.9]} 25... Nf6 {[%clk 0:00:19.1]} 26. Bb7 {[%clk
0:01:44.3]} 26... a5 {[%clk 0:00:18.4]} 27. Rc5 {[%clk 0:01:43.6]} 27... Rb8
{[%clk 0:00:18.4]} 28. Bf3 {[%clk 0:01:41.2]} 28... Rb1+ {[%clk 0:00:16.8]} 29.
Kh2 {[%clk 0:01:41.3]} 29... Rb2 {[%clk 0:00:13.8]} 30. Kg3 {[%clk 0:01:34.4]}
30... Rb4 {[%clk 0:00:07.9]} 31. Rxa5 {[%clk 0:01:34.2]} 31... Ne4+ {[%clk
0:00:08]} 32. Kh2 {[%clk 0:01:21.6]} 32... Nxf2 {[%clk 0:00:06.6]} 33. Ra8+
{[%clk 0:01:21.4]} 33... Kg7 {[%clk 0:00:06.4]} 34. a5 {[%clk 0:01:22.3]} 34...
Ra4 {[%clk 0:00:06.6]} 35. a6 {[%clk 0:01:22.5]} 35... Nd3 {[%clk 0:00:06.4]}
36. a7 {[%clk 0:01:00.9]} 36... Ne5 {[%clk 0:00:06.1]} 37. Bd1 {[%clk
0:00:59.6]} 37... Ra5 {[%clk 0:00:04.3]} 38. Re8 {[%clk 0:00:59.6]} 1-0

[Event "*** Titled Tuesday Blitz"]
[Site "Chess.com"]
[Date "2021.04.20"]
[Round "4"]
[White "Sergey85Rodchenkov"]
[Black "superchess02"]
[Result "0-1"]
[WhiteElo "2508"]
[BlackElo "2738"]
[TimeControl "180+1"]
[EndTime "10:37:18 PDT"]
[Termination "superchess02 won by resignation"]

1. e4 {[%clk 0:03:00.9]} 1... c5 {[%clk 0:02:59.8]} 2. Nf3 {[%clk 0:03:00.7]}
2... d6 {[%clk 0:02:57.2]} 3. d4 {[%clk 0:02:56.9]} 3... cxd4 {[%clk 0:02:58.1]}
4. Nxd4 {[%clk 0:02:56.7]} 4... Nf6 {[%clk 0:02:58.6]} 5. Nc3 {[%clk 0:02:56.9]}
5... a6 {[%clk 0:02:59.3]} 6. Bc4 {[%clk 0:02:56.7]} 6... e6 {[%clk 0:02:59.7]}
7. Bb3 {[%clk 0:02:57]} 7... b5 {[%clk 0:03:00.3]} 8. O-O {[%clk 0:02:57]} 8...
Bb7 {[%clk 0:03:00.9]} 9. f4 {[%clk 0:02:56.6]} 9... Nbd7 {[%clk 0:03:01.1]} 10.
Be3 {[%clk 0:02:53.6]} 10... Rc8 {[%clk 0:03:01.1]} 11. f5 {[%clk 0:02:52.5]}
11... e5 {[%clk 0:02:59.5]} 12. Nde2 {[%clk 0:02:52.2]} 12... h5 {[%clk
0:02:57.5]} 13. Nd5 {[%clk 0:02:50.6]} 13... Nxe4 {[%clk 0:02:39.1]} 14. a4
{[%clk 0:02:50]} 14... b4 {[%clk 0:02:28.2]} 15. a5 {[%clk 0:02:49.6]} 15...
Nec5 {[%clk 0:02:26]} 16. Nxb4 {[%clk 0:02:41.2]} 16... Nxb3 {[%clk 0:02:24.9]}
17. cxb3 {[%clk 0:02:41.4]} 17... Nf6 {[%clk 0:02:22.6]} 18. Nc3 {[%clk
0:02:40.4]} 18... d5 {[%clk 0:02:19.1]} 19. Bb6 {[%clk 0:02:37.1]} 19... Qd6
{[%clk 0:02:02.4]} 20. Nd3 {[%clk 0:02:26.5]} 20... Be7 {[%clk 0:02:02.1]} 21.
Qe2 {[%clk 0:02:20.4]} 21... e4 {[%clk 0:01:59.5]} 22. Nf4 {[%clk 0:02:18.9]}
22... d4 {[%clk 0:01:45.4]} 23. Rad1 {[%clk 0:02:17.2]} 23... d3 {[%clk
0:01:45.9]} 24. Qe3 {[%clk 0:02:03.9]} 24... O-O {[%clk 0:01:22.7]} 25. Qh3
{[%clk 0:02:00.2]} 25... Qe5 {[%clk 0:00:39.3]} 26. Nxh5 {[%clk 0:01:44.5]}
26... Nxh5 {[%clk 0:00:40.2]} 27. Qxh5 {[%clk 0:01:44.5]} 27... Rfd8 {[%clk
0:00:41]} 28. Be3 {[%clk 0:01:37.2]} 28... Bc5 {[%clk 0:00:39.3]} 29. Qh3 {[%clk
0:01:36.1]} 29... Bxe3+ {[%clk 0:00:33.7]} 30. Qxe3 {[%clk 0:01:35.5]} 30...
Qxa5 {[%clk 0:00:34.3]} 31. f6 {[%clk 0:01:33.7]} 31... Qc5 {[%clk 0:00:33.4]}
32. Kf2 {[%clk 0:01:23.9]} 32... gxf6 {[%clk 0:00:30.7]} 33. Qxc5 {[%clk
0:01:23.2]} 33... Rxc5 {[%clk 0:00:30.4]} 34. Ke3 {[%clk 0:01:24.1]} 34... f5
{[%clk 0:00:25.6]} 35. b4 {[%clk 0:01:19.8]} 35... Re5 {[%clk 0:00:25.6]} 36.
Rf4 {[%clk 0:01:10.9]} 36... Kg7 {[%clk 0:00:25.1]} 37. Rdf1 {[%clk 0:01:09.7]}
37... Kg6 {[%clk 0:00:22.4]} 38. g4 {[%clk 0:01:08.4]} 38... Bc8 {[%clk
0:00:20]} 39. gxf5+ {[%clk 0:01:07.4]} 39... Bxf5 {[%clk 0:00:20.9]} 40. Rg1+
{[%clk 0:01:04.5]} 40... Kf6 {[%clk 0:00:21.3]} 41. Rgf1 {[%clk 0:01:02.2]}
41... Ke6 {[%clk 0:00:21.6]} 42. Ra1 {[%clk 0:00:58.3]} 42... Rd6 {[%clk
0:00:20.6]} 43. b5 {[%clk 0:00:57.4]} 43... axb5 {[%clk 0:00:19.3]} 44. Nxb5
{[%clk 0:00:57.6]} 44... Rxb5 {[%clk 0:00:19.1]} 0-1

[Event "*** Titled Tuesday Blitz"]
[Site "Chess.com"]
[Date "2021.04.20"]
[Round "4"]
[White "Aslanov_Umid"]
[Black "Andrakhanova"]
[Result "1/2-1/2"]
[WhiteElo "2454"]
[BlackElo "2317"]
[TimeControl "180+1"]
[EndTime "10:37:18 PDT"]
[Termination "Game drawn by repetition"]

1. e4 {[%clk 0:03:00.9]} 1... c5 {[%clk 0:02:59.3]} 2. Nf3 {[%clk 0:03:01.2]}
2... e6 {[%clk 0:02:59.5]} 3. d4 {[%clk 0:03:01.5]} 3... cxd4 {[%clk 0:03:00.4]}
4. Nxd4 {[%clk 0:03:02.4]} 4... Nf6 {[%clk 0:03:00.6]} 5. Nc3 {[%clk 0:02:57.8]}
5... Nc6 {[%clk 0:03:00.2]} 6. Ndb5 {[%clk 0:02:55.2]} 6... d6 {[%clk
0:02:58.4]} 7. Bf4 {[%clk 0:02:52.9]} 7... e5 {[%clk 0:02:58.6]} 8. Bg5 {[%clk
0:02:52.9]} 8... a6 {[%clk 0:02:59.1]} 9. Na3 {[%clk 0:02:52.5]} 9... b5 {[%clk
0:02:59.2]} 10. Nd5 {[%clk 0:02:52.7]} 10... Be7 {[%clk 0:02:59.5]} 11. Bxf6
{[%clk 0:02:53.2]} 11... Bxf6 {[%clk 0:03:00.4]} 12. c3 {[%clk 0:02:54.1]} 12...
O-O {[%clk 0:02:59.7]} 13. Nc2 {[%clk 0:02:52.8]} 13... Bg5 {[%clk 0:02:59.9]}
14. h4 {[%clk 0:02:52.2]} 14... Bh6 {[%clk 0:02:59.8]} 15. a4 {[%clk 0:02:43.8]}
15... bxa4 {[%clk 0:02:59]} 16. Rxa4 {[%clk 0:02:44.7]} 16... a5 {[%clk
0:02:59.4]} 17. Bc4 {[%clk 0:02:42]} 17... Rb8 {[%clk 0:02:58.3]} 18. b3 {[%clk
0:02:42]} 18... Kh8 {[%clk 0:02:56.6]} 19. Nce3 {[%clk 0:02:40.9]} 19... Bxe3
{[%clk 0:02:37.3]} 20. Nxe3 {[%clk 0:02:39.4]} 20... f5 {[%clk 0:02:12.1]} 21.
exf5 {[%clk 0:02:32.5]} 21... Bxf5 {[%clk 0:02:13]} 22. Nxf5 {[%clk 0:02:32.2]}
22... Rxf5 {[%clk 0:02:10.9]} 23. Bd3 {[%clk 0:02:31.3]} 23... Rf6 {[%clk
0:01:45.7]} 24. Qg4 {[%clk 0:02:00.3]} 24... Qb6 {[%clk 0:01:38.1]} 25. O-O
{[%clk 0:01:54.4]} 25... Rbf8 {[%clk 0:01:19.7]} 26. Qe4 {[%clk 0:01:25.4]}
26... g6 {[%clk 0:01:17.9]} 27. Rc4 {[%clk 0:01:01.5]} 27... Rxf2 {[%clk
0:00:59.7]} 28. Rxf2 {[%clk 0:00:42.3]} 28... Qxf2+ {[%clk 0:01:00.6]} 29. Kh2
{[%clk 0:00:42]} 29... Rf4 {[%clk 0:00:48.5]} 30. Qxc6 {[%clk 0:00:37.9]} 30...
Qxh4+ {[%clk 0:00:35]} 31. Kg1 {[%clk 0:00:36.8]} 31... Qf2+ {[%clk 0:00:20.5]}
32. Kh2 {[%clk 0:00:35.1]} 32... Qh4+ {[%clk 0:00:20.5]} 33. Kg1 {[%clk
0:00:34.6]} 33... Qf2+ {[%clk 0:00:21]} 34. Kh2 {[%clk 0:00:34.7]} 34... Qh4+
{[%clk 0:00:21.7]} 1/2-1/2